[Event "Titled Tuesday Blitz August 17 2021"]
[White "Popilski, Gil"]
[Black "Ivanisevic, Ivan"]
[WhiteFideId "2809060"]
[BlackFideId "912417"]
[WhiteElo "2537"]
[BlackElo "2499"]
[Result "0-1"]
[Round "02"]
[TimeControl "180+1"]
[Date "2021.08.17"]
[WhiteClock "0:00:08"]
[BlackClock "0:00:19"]

1. e4 {[%clk 0:03:00]}  e5 {[%clk 0:02:59]} 2. Nf3 {[%clk 0:03:00]}  Nc6 {[%clk 0:02:57]} 3. Bb5 {[%clk 0:03:00]}  a6 {[%clk 0:02:51]} 4. Ba4 {[%clk 0:03:00]}  Bc5 {[%clk 0:02:48]} 5. c3 {[%clk 0:02:59]}  Nge7 {[%clk 0:02:46]} 6. d4 {[%clk 0:02:56]}  exd4 {[%clk 0:02:44]} 7. cxd4 {[%clk 0:02:57]}  Bb4+ {[%clk 0:02:44]} 8. Nc3 {[%clk 0:02:56]}  d5 {[%clk 0:02:43]} 9. exd5 {[%clk 0:02:31]}  Nxd5 {[%clk 0:02:44]} 10. O-O {[%clk 0:01:49]}  O-O {[%clk 0:02:26]} 11. Ne4 {[%clk 0:01:10]}  Bg4 {[%clk 0:02:15]} 12. Bxc6 {[%clk 0:01:05]}  bxc6 {[%clk 0:02:14]} 13. h3 {[%clk 0:01:05]}  Bh5 {[%clk 0:02:14]} 14. Ng3 {[%clk 0:01:00]}  Bg6 {[%clk 0:02:05]} 15. Ne5 {[%clk 0:00:59]}  Qd6 {[%clk 0:01:41]} 16. a3 {[%clk 0:00:58]}  Ba5 {[%clk 0:01:40]} 17. Qa4 {[%clk 0:00:41]}  Bb6 {[%clk 0:01:40]} 18. Nxc6 {[%clk 0:00:40]}  Rae8 {[%clk 0:01:28]} 19. Bd2 {[%clk 0:00:38]}  f5 {[%clk 0:01:22]} 20. Rfe1 {[%clk 0:00:15]}  f4 {[%clk 0:01:14]} 21. Nf1 {[%clk 0:00:15]}  f3 {[%clk 0:01:10]} 22. g4 {[%clk 0:00:14]}  Re2 {[%clk 0:01:04]} 23. Qc4 {[%clk 0:00:10]}  Bf7 {[%clk 0:00:43]} 24. Ne5 {[%clk 0:00:09]}  Nf4 {[%clk 0:00:37]} 25. Nxf7 {[%clk 0:00:09]}  Nxh3+ {[%clk 0:00:37]} 26. Kh1 {[%clk 0:00:09]}  Nxf2+ {[%clk 0:00:35]} 27. Kg1 {[%clk 0:00:09]}  Nh3+ {[%clk 0:00:31]} 28. Kh1 {[%clk 0:00:09]}  Rxf7 {[%clk 0:00:23]} 29. Rxe2 {[%clk 0:00:09]}  fxe2 {[%clk 0:00:24]} 30. Qxe2 {[%clk 0:00:09]}  Qd5+ {[%clk 0:00:20]} 31. Kh2 {[%clk 0:00:08]}  Rf2+ {[%clk 0:00:19]} 0-1


[Site "https://www.chess.com"]

[Event "Titled Tuesday Blitz August 17 2021"]
[White "Preotu, Razvan"]
[Black "Poormosavi, Seyed Kian"]
[WhiteFideId "2613280"]
[BlackFideId "12585807"]
[WhiteElo "2407"]
[BlackElo "2134"]
[Result "1/2-1/2"]
[Round "02"]
[TimeControl "180+1"]
[Date "2021.08.17"]
[WhiteClock "0:00:09"]
[BlackClock "0:00:12"]

1. e4 {[%clk 0:03:00]}  c5 {[%clk 0:02:51]} 2. Nf3 {[%clk 0:03:00]}  Nf6 {[%clk 0:02:51]} 3. e5 {[%clk 0:02:58]}  Nd5 {[%clk 0:02:50]} 4. Nc3 {[%clk 0:02:58]}  e6 {[%clk 0:02:48]} 5. Ne4 {[%clk 0:02:56]}  Nc6 {[%clk 0:02:47]} 6. b3 {[%clk 0:02:47]}  f5 {[%clk 0:02:36]} 7. Nc3 {[%clk 0:02:46]}  Nxc3 {[%clk 0:02:32]} 8. dxc3 {[%clk 0:02:47]}  d5 {[%clk 0:02:29]} 9. exd6 {[%clk 0:02:44]}  Bxd6 {[%clk 0:02:28]} 10. Bb5 {[%clk 0:02:41]}  O-O {[%clk 0:02:24]} 11. Bxc6 {[%clk 0:02:40]}  bxc6 {[%clk 0:02:25]} 12. c4 {[%clk 0:02:33]}  Qf6 {[%clk 0:02:20]} 13. Qxd6 {[%clk 0:01:46]}  Qxa1 {[%clk 0:02:16]} 14. O-O {[%clk 0:01:46]}  Qxa2 {[%clk 0:01:43]} 15. Qxc6 {[%clk 0:01:45]}  Qa6 {[%clk 0:01:37]} 16. Qxc5 {[%clk 0:01:35]}  Bb7 {[%clk 0:01:35]} 17. Ne5 {[%clk 0:01:30]}  Qb6 {[%clk 0:01:24]} 18. Qe7 {[%clk 0:00:58]}  Rae8 {[%clk 0:00:59]} 19. Qh4 {[%clk 0:00:58]}  f4 {[%clk 0:00:27]} 20. Bxf4 {[%clk 0:00:50]}  Qd4 {[%clk 0:00:27]} 21. Bg3 {[%clk 0:00:49]}  Qd2 {[%clk 0:00:24]} 22. Qg4 {[%clk 0:00:29]}  Qxc2 {[%clk 0:00:23]} 23. Nd7 {[%clk 0:00:29]}  Rf7 {[%clk 0:00:20]} 24. Nc5 {[%clk 0:00:29]}  Bc6 {[%clk 0:00:17]} 25. Be5 {[%clk 0:00:24]}  Qf5 {[%clk 0:00:15]} 26. Qg3 {[%clk 0:00:22]}  a5 {[%clk 0:00:12]} 27. h4 {[%clk 0:00:22]}  Rd8 {[%clk 0:00:12]} 28. Ra1 {[%clk 0:00:20]}  Qc2 {[%clk 0:00:11]} 29. Nxe6 {[%clk 0:00:18]}  Rd1+ {[%clk 0:00:11]} 30. Rxd1 {[%clk 0:00:18]}  Qxd1+ {[%clk 0:00:12]} 31. Kh2 {[%clk 0:00:19]}  Qh5 {[%clk 0:00:12]} 32. Nxg7 {[%clk 0:00:18]}  Qg6 {[%clk 0:00:12]} 33. Ne6 {[%clk 0:00:14]}  Qxg3+ {[%clk 0:00:12]} 34. Bxg3 {[%clk 0:00:15]}  Re7 {[%clk 0:00:13]} 35. Nd4 {[%clk 0:00:15]}  Bd7 {[%clk 0:00:12]} 36. c5 {[%clk 0:00:15]}  Re4 {[%clk 0:00:12]} 37. Nc2 {[%clk 0:00:09]}  Re2 {[%clk 0:00:12]} 38. c6 {[%clk 0:00:07]}  Rxc2 {[%clk 0:00:11]} 39. cxd7 {[%clk 0:00:07]}  Rd2 {[%clk 0:00:12]} 40. Bc7 {[%clk 0:00:07]}  Rxd7 {[%clk 0:00:12]} 41. Bxa5 {[%clk 0:00:08]}  Rb7 {[%clk 0:00:11]} 42. b4 {[%clk 0:00:08]}  Rb5 {[%clk 0:00:11]} 43. Kg3 {[%clk 0:00:08]}  Kf7 {[%clk 0:00:12]} 44. Kf4 {[%clk 0:00:09]}  Kf6 {[%clk 0:00:12]} 45. g4 {[%clk 0:00:09]}  h6 {[%clk 0:00:12]} 46. g5+ {[%clk 0:00:07]}  hxg5+ {[%clk 0:00:11]} 47. hxg5+ {[%clk 0:00:08]}  Kg6 {[%clk 0:00:12]} 48. Ke4 {[%clk 0:00:08]}  Rxg5 {[%clk 0:00:12]} 49. f4 {[%clk 0:00:09]}  Rb5 {[%clk 0:00:12]} 50. Kd4 {[%clk 0:00:09]}  Kf5 {[%clk 0:00:12]} 51. Ke3 {[%clk 0:00:09]}  Rb7 {[%clk 0:00:12]} 52. Kd4 {[%clk 0:00:09]}  Rxb4+ {[%clk 0:00:11]} 53. Bxb4 {[%clk 0:00:09]}  Kxf4 {[%clk 0:00:12]} 1/2-1/2


[Site "https://www.chess.com"]

[Event "Titled Tuesday Blitz August 17 2021"]
[White "Rastbod, Ali"]
[Black "Nilsen, Tobias Lang"]
[WhiteFideId "12567477"]
[BlackFideId "1521624"]
[WhiteElo "2226"]
[BlackElo "1975"]
[Result "1-0"]
[Round "02"]
[TimeControl "180+1"]
[Date "2021.08.18"]
[WhiteClock "0:00:09"]
[BlackClock "0:00:39"]

1. c4 {[%clk 0:03:00]}  c5 {[%clk 0:02:59]} 2. Nf3 {[%clk 0:03:00]}  g6 {[%clk 0:03:00]} 3. d4 {[%clk 0:02:59]}  Bg7 {[%clk 0:02:59]} 4. dxc5 {[%clk 0:02:59]}  Na6 {[%clk 0:02:58]} 5. g3 {[%clk 0:02:56]}  Nxc5 {[%clk 0:02:57]} 6. Bg2 {[%clk 0:02:57]}  Nf6 {[%clk 0:02:57]} 7. Nc3 {[%clk 0:02:56]}  O-O {[%clk 0:02:56]} 8. O-O {[%clk 0:02:56]}  d6 {[%clk 0:02:57]} 9. Nd4 {[%clk 0:02:54]}  Rb8 {[%clk 0:02:55]} 10. b3 {[%clk 0:02:51]}  Ne6 {[%clk 0:02:54]} 11. Bb2 {[%clk 0:02:50]}  Nxd4 {[%clk 0:02:54]} 12. Qxd4 {[%clk 0:02:50]}  a6 {[%clk 0:02:44]} 13. Rfd1 {[%clk 0:02:38]}  Be6 {[%clk 0:02:43]} 14. e4 {[%clk 0:01:33]}  Nd5 {[%clk 0:02:32]} 15. Qd2 {[%clk 0:01:27]}  Nxc3 {[%clk 0:02:28]} 16. Bxc3 {[%clk 0:01:28]}  Bxc3 {[%clk 0:02:28]} 17. Qxc3 {[%clk 0:01:29]}  Qc7 {[%clk 0:02:21]} 18. Rac1 {[%clk 0:01:26]}  Rbc8 {[%clk 0:02:18]} 19. Bf1 {[%clk 0:00:45]}  Rfd8 {[%clk 0:02:13]} 20. Be2 {[%clk 0:00:35]}  Qc6 {[%clk 0:02:04]} 21. Qe3 {[%clk 0:00:34]}  Qc5 {[%clk 0:02:02]} 22. Qd2 {[%clk 0:00:31]}  Qc7 {[%clk 0:01:42]} 23. f4 {[%clk 0:00:31]}  Qc5+ {[%clk 0:01:39]} 24. Kg2 {[%clk 0:00:31]}  f6 {[%clk 0:01:35]} 25. Bf3 {[%clk 0:00:29]}  Bd7 {[%clk 0:01:33]} 26. Qd5+ {[%clk 0:00:25]}  Kg7 {[%clk 0:01:31]} 27. Qxb7 {[%clk 0:00:20]}  Rc7 {[%clk 0:01:20]} 28. Qd5 {[%clk 0:00:20]}  Qxd5 {[%clk 0:01:18]} 29. exd5 {[%clk 0:00:21]}  Kf7 {[%clk 0:01:16]} 30. Rd2 {[%clk 0:00:20]}  a5 {[%clk 0:01:15]} 31. Rdc2 {[%clk 0:00:20]}  Rdc8 {[%clk 0:01:15]} 32. Kf2 {[%clk 0:00:20]}  Bf5 {[%clk 0:01:14]} 33. Rc3 {[%clk 0:00:20]}  Rc5 {[%clk 0:01:14]} 34. Ke3 {[%clk 0:00:20]}  R8c7 {[%clk 0:01:15]} 35. Kd4 {[%clk 0:00:20]}  Bc8 {[%clk 0:01:10]} 36. a3 {[%clk 0:00:19]}  Rb7 {[%clk 0:01:09]} 37. Rb1 {[%clk 0:00:19]}  Bf5 {[%clk 0:01:08]} 38. Rb2 {[%clk 0:00:18]}  Rc8 {[%clk 0:01:08]} 39. b4 {[%clk 0:00:18]}  axb4 {[%clk 0:01:09]} 40. axb4 {[%clk 0:00:19]}  Rcb8 {[%clk 0:01:10]} 41. Rcb3 {[%clk 0:00:20]}  Ke8 {[%clk 0:01:10]} 42. Be4 {[%clk 0:00:18]}  Bg4 {[%clk 0:01:08]} 43. Kc3 {[%clk 0:00:18]}  Kd7 {[%clk 0:01:08]} 44. c5 {[%clk 0:00:18]}  dxc5 {[%clk 0:01:06]} 45. bxc5 {[%clk 0:00:19]}  Rxb3+ {[%clk 0:01:06]} 46. Rxb3 {[%clk 0:00:20]}  Rxb3+ {[%clk 0:01:05]} 47. Kxb3 {[%clk 0:00:21]}  Kc7 {[%clk 0:01:01]} 48. Kb4 {[%clk 0:00:19]}  Bc8 {[%clk 0:01:02]} 49. Kc4 {[%clk 0:00:17]}  Bd7 {[%clk 0:01:01]} 50. Kd4 {[%clk 0:00:13]}  Bg4 {[%clk 0:01:01]} 51. Bg2 {[%clk 0:00:13]}  Bc8 {[%clk 0:01:00]} 52. h3 {[%clk 0:00:12]}  Bd7 {[%clk 0:00:59]} 53. g4 {[%clk 0:00:13]}  Bc8 {[%clk 0:00:59]} 54. g5 {[%clk 0:00:12]}  Bf5 {[%clk 0:00:57]} 55. h4 {[%clk 0:00:12]}  Kd7 {[%clk 0:00:56]} 56. Bf1 {[%clk 0:00:09]}  Kc7 {[%clk 0:00:55]} 57. Bb5 {[%clk 0:00:09]}  fxg5 {[%clk 0:00:38]} 58. hxg5 {[%clk 0:00:10]}  e6 {[%clk 0:00:38]} 59. d6+ {[%clk 0:00:09]}  Kd8 {[%clk 0:00:39]} 60. c6 {[%clk 0:00:09]} 1-0


[Site "https://www.chess.com"]

[Event "Titled Tuesday Blitz August 17 2021"]
[White "Rustemov, Alexander"]
[Black "Matveeva, Olga"]
[WhiteFideId "4119002"]
[BlackFideId "24107018"]
[WhiteElo "2706"]
[BlackElo "2108"]
[Result "1-0"]
[Round "02"]
[TimeControl "180+1"]
[Date "2021.08.18"]
[WhiteClock "0:00:15"]
[BlackClock "0:00:08"]

1. d4 {[%clk 0:03:00]}  d5 {[%clk 0:02:58]} 2. c4 {[%clk 0:03:00]}  e6 {[%clk 0:02:58]} 3. Nc3 {[%clk 0:03:00]}  c5 {[%clk 0:02:57]} 4. cxd5 {[%clk 0:03:00]}  exd5 {[%clk 0:02:58]} 5. Nf3 {[%clk 0:02:59]}  Nc6 {[%clk 0:02:58]} 6. g3 {[%clk 0:02:59]}  Nf6 {[%clk 0:02:58]} 7. Bg2 {[%clk 0:02:58]}  Be7 {[%clk 0:02:58]} 8. O-O {[%clk 0:02:58]}  O-O {[%clk 0:02:58]} 9. Bg5 {[%clk 0:02:55]}  c4 {[%clk 0:02:58]} 10. Ne5 {[%clk 0:02:54]}  h6 {[%clk 0:02:54]} 11. Bf4 {[%clk 0:02:45]}  Be6 {[%clk 0:02:52]} 12. b3 {[%clk 0:02:41]}  Qb6 {[%clk 0:02:21]} 13. bxc4 {[%clk 0:02:30]}  dxc4 {[%clk 0:01:58]} 14. Rb1 {[%clk 0:02:27]}  Qa5 {[%clk 0:01:44]} 15. Bxc6 {[%clk 0:02:26]}  bxc6 {[%clk 0:01:38]} 16. Nxc6 {[%clk 0:02:25]}  Qxc3 {[%clk 0:01:32]} 17. Nxe7+ {[%clk 0:02:23]}  Kh8 {[%clk 0:01:31]} 18. Qd2 {[%clk 0:02:15]}  Qxd2 {[%clk 0:01:19]} 19. Bxd2 {[%clk 0:02:15]}  Ne4 {[%clk 0:01:19]} 20. Bb4 {[%clk 0:02:09]}  Rfd8 {[%clk 0:01:07]} 21. e3 {[%clk 0:01:58]}  a5 {[%clk 0:01:02]} 22. Bc5 {[%clk 0:01:14]}  Nd2 {[%clk 0:00:56]} 23. Rbc1 {[%clk 0:01:04]}  Nxf1 {[%clk 0:00:55]} 24. Kxf1 {[%clk 0:01:04]}  Rdb8 {[%clk 0:00:48]} 25. e4 {[%clk 0:00:57]}  Rb2 {[%clk 0:00:45]} 26. a3 {[%clk 0:00:54]}  Bh3+ {[%clk 0:00:44]} 27. Ke1 {[%clk 0:00:53]}  Rab8 {[%clk 0:00:34]} 28. Nc6 {[%clk 0:00:45]}  R8b5 {[%clk 0:00:25]} 29. a4 {[%clk 0:00:42]}  R5b3 {[%clk 0:00:23]} 30. Nxa5 {[%clk 0:00:38]}  Rd3 {[%clk 0:00:15]} 31. Nxc4 {[%clk 0:00:37]}  Ra2 {[%clk 0:00:13]} 32. a5 {[%clk 0:00:30]}  Rb3 {[%clk 0:00:12]} 33. d5 {[%clk 0:00:27]}  Bg4 {[%clk 0:00:11]} 34. Ne3 {[%clk 0:00:26]}  Bf3 {[%clk 0:00:09]} 35. Bb6 {[%clk 0:00:22]}  Rbb2 {[%clk 0:00:08]} 36. Nc4 {[%clk 0:00:16]}  Re2+ {[%clk 0:00:08]} 37. Kf1 {[%clk 0:00:16]}  Rxf2+ {[%clk 0:00:08]} 38. Bxf2 {[%clk 0:00:15]} 1-0


[Site "https://www.chess.com"]

[Event "Titled Tuesday Blitz August 17 2021"]
[White "Rytenko, Vsevolod"]
[Black "Liyanage, Ranindu Dilshan"]
[WhiteFideId "14133040"]
[BlackFideId "9915834"]
[WhiteElo "2200"]
[BlackElo "1839"]
[Result "0-1"]
[Round "02"]
[TimeControl "180+1"]
[Date "2021.08.18"]
[WhiteClock "0:00:01"]
[BlackClock "0:00:17"]

1. d4 {[%clk 0:03:00]}  Nf6 {[%clk 0:02:59]} 2. c4 {[%clk 0:03:00]}  e6 {[%clk 0:03:00]} 3. Nc3 {[%clk 0:03:00]}  Bb4 {[%clk 0:03:00]} 4. Bd2 {[%clk 0:03:00]}  O-O {[%clk 0:03:00]} 5. Nf3 {[%clk 0:03:00]}  d5 {[%clk 0:03:00]} 6. e3 {[%clk 0:03:01]}  b6 {[%clk 0:03:00]} 7. cxd5 {[%clk 0:02:59]}  exd5 {[%clk 0:03:01]} 8. Bd3 {[%clk 0:02:59]}  c6 {[%clk 0:03:02]} 9. O-O {[%clk 0:02:59]}  Re8 {[%clk 0:02:59]} 10. Rc1 {[%clk 0:02:59]}  Bd6 {[%clk 0:02:53]} 11. Bb1 {[%clk 0:02:57]}  Bg4 {[%clk 0:02:51]} 12. h3 {[%clk 0:02:49]}  Bh5 {[%clk 0:02:50]} 13. Qc2 {[%clk 0:02:34]}  Nbd7 {[%clk 0:02:36]} 14. Ne2 {[%clk 0:02:30]}  Ne4 {[%clk 0:02:24]} 15. g4 {[%clk 0:01:50]}  Bg6 {[%clk 0:02:21]} 16. Qxc6 {[%clk 0:01:48]}  Rc8 {[%clk 0:02:12]} 17. Qxc8 {[%clk 0:01:25]}  Qxc8 {[%clk 0:02:13]} 18. Rxc8 {[%clk 0:01:24]}  Rxc8 {[%clk 0:02:13]} 19. Rc1 {[%clk 0:01:25]}  Re8 {[%clk 0:02:11]} 20. Be1 {[%clk 0:01:16]}  h5 {[%clk 0:02:09]} 21. Nh4 {[%clk 0:01:10]}  Bh7 {[%clk 0:02:08]} 22. Nf5 {[%clk 0:01:03]}  Bb8 {[%clk 0:01:59]} 23. Bxe4 {[%clk 0:00:49]}  dxe4 {[%clk 0:02:00]} 24. Rc8 {[%clk 0:00:49]}  Rxc8 {[%clk 0:01:53]} 25. Ne7+ {[%clk 0:00:49]}  Kf8 {[%clk 0:01:50]} 26. Nxc8 {[%clk 0:00:50]}  Ke8 {[%clk 0:01:42]} 27. Bb4 {[%clk 0:00:49]}  Nf6 {[%clk 0:01:40]} 28. g5 {[%clk 0:00:33]}  Nd5 {[%clk 0:01:23]} 29. Bd6 {[%clk 0:00:34]}  Bxd6 {[%clk 0:01:05]} 30. Nxd6+ {[%clk 0:00:35]}  Ke7 {[%clk 0:01:05]} 31. Nb5 {[%clk 0:00:33]}  a6 {[%clk 0:01:03]} 32. Nbc3 {[%clk 0:00:31]}  Nb4 {[%clk 0:01:03]} 33. Ng3 {[%clk 0:00:28]}  h4 {[%clk 0:00:56]} 34. Ngxe4 {[%clk 0:00:25]}  Bxe4 {[%clk 0:00:56]} 35. Nxe4 {[%clk 0:00:26]}  Nxa2 {[%clk 0:00:56]} 36. Kf1 {[%clk 0:00:23]}  Nb4 {[%clk 0:00:50]} 37. Ke2 {[%clk 0:00:23]}  Ke6 {[%clk 0:00:51]} 38. f4 {[%clk 0:00:21]}  a5 {[%clk 0:00:43]} 39. Nd2 {[%clk 0:00:18]}  b5 {[%clk 0:00:40]} 40. e4 {[%clk 0:00:19]}  Nc2 {[%clk 0:00:38]} 41. Kd3 {[%clk 0:00:17]}  Ne1+ {[%clk 0:00:37]} 42. Ke2 {[%clk 0:00:16]}  Nc2 {[%clk 0:00:33]} 43. d5+ {[%clk 0:00:16]}  Kd6 {[%clk 0:00:33]} 44. Nf3 {[%clk 0:00:16]}  b4 {[%clk 0:00:26]} 45. Kd2 {[%clk 0:00:14]}  b3 {[%clk 0:00:23]} 46. Nxh4 {[%clk 0:00:12]}  a4 {[%clk 0:00:23]} 47. Nf5+ {[%clk 0:00:12]}  Kc5 {[%clk 0:00:23]} 48. Nxg7 {[%clk 0:00:11]}  Nd4 {[%clk 0:00:22]} 49. Nf5 {[%clk 0:00:08]}  Nf3+ {[%clk 0:00:22]} 50. Kd3 {[%clk 0:00:05]}  Ne1+ {[%clk 0:00:20]} 51. Kd2 {[%clk 0:00:05]}  a3 {[%clk 0:00:17]} 52. bxa3 {[%clk 0:00:02]}  b2 {[%clk 0:00:17]} 53. Kxe1 {[%clk 0:00:02]}  b1=Q+ {[%clk 0:00:17]} 54. Kf2 {[%clk 0:00:02]}  Qxe4 {[%clk 0:00:18]} 55. Ne3 {[%clk 0:00:02]}  Kd4 {[%clk 0:00:17]} 56. Ng4 {[%clk 0:00:01]}  Qxf4+ {[%clk 0:00:17]} 57. Kg2 {[%clk 0:00:01]}  Ke4 {[%clk 0:00:17]} 0-1


[Site "https://www.chess.com"]

[Event "Titled Tuesday Blitz August 17 2021"]
[White "Sadykov, Ramil"]
[Black "Dronavalli, Harika"]
[WhiteFideId "24113590"]
[BlackFideId "5015197"]
[WhiteElo "2300"]
[BlackElo "2422"]
[Result "0-1"]
[Round "02"]
[TimeControl "180+1"]
[Date "2021.08.17"]
[WhiteClock "0:00:02"]
[BlackClock "0:00:55"]

1. d4 {[%clk 0:03:00]}  Nf6 {[%clk 0:02:59]} 2. Nc3 {[%clk 0:03:01]}  d5 {[%clk 0:02:52]} 3. Bf4 {[%clk 0:03:00]}  a6 {[%clk 0:02:51]} 4. e3 {[%clk 0:03:00]}  e6 {[%clk 0:02:51]} 5. g4 {[%clk 0:02:57]}  Bd6 {[%clk 0:02:51]} 6. Qf3 {[%clk 0:02:56]}  h6 {[%clk 0:02:46]} 7. Bg2 {[%clk 0:02:48]}  c5 {[%clk 0:02:45]} 8. Nge2 {[%clk 0:02:33]}  Nc6 {[%clk 0:02:45]} 9. h4 {[%clk 0:02:26]}  Bxf4 {[%clk 0:02:25]} 10. Qxf4 {[%clk 0:02:24]}  Qe7 {[%clk 0:02:16]} 11. O-O-O {[%clk 0:02:11]}  Bd7 {[%clk 0:02:10]} 12. g5 {[%clk 0:02:10]}  Nh5 {[%clk 0:02:05]} 13. Qc7 {[%clk 0:01:50]}  cxd4 {[%clk 0:01:47]} 14. Nxd4 {[%clk 0:00:57]}  Nxd4 {[%clk 0:01:47]} 15. Rxd4 {[%clk 0:00:52]}  Bc6 {[%clk 0:01:41]} 16. Qxe7+ {[%clk 0:00:32]}  Kxe7 {[%clk 0:01:41]} 17. Bf3 {[%clk 0:00:33]}  g6 {[%clk 0:01:34]} 18. Bxh5 {[%clk 0:00:30]}  gxh5 {[%clk 0:01:34]} 19. f4 {[%clk 0:00:29]}  Rag8 {[%clk 0:01:31]} 20. Ne2 {[%clk 0:00:19]}  f6 {[%clk 0:01:25]} 21. gxf6+ {[%clk 0:00:13]}  Kxf6 {[%clk 0:01:25]} 22. Rh2 {[%clk 0:00:03]}  Rg4 {[%clk 0:01:24]} 23. Rd2 {[%clk 0:00:02]}  Rhg8 {[%clk 0:01:24]} 24. Nd4 {[%clk 0:00:03]}  Rg3 {[%clk 0:01:19]} 25. Rde2 {[%clk 0:00:02]}  R8g4 {[%clk 0:01:16]} 26. b3 {[%clk 0:00:02]}  Be8 {[%clk 0:01:13]} 27. a4 {[%clk 0:00:02]}  Bg6 {[%clk 0:01:12]} 28. Kb2 {[%clk 0:00:02]}  Be4 {[%clk 0:01:11]} 29. a5 {[%clk 0:00:02]}  Bf3 {[%clk 0:01:07]} 30. Re1 {[%clk 0:00:02]}  Be4 {[%clk 0:01:07]} 31. Ka3 {[%clk 0:00:02]}  Rg2 {[%clk 0:01:06]} 32. Rxg2 {[%clk 0:00:02]}  Rxg2 {[%clk 0:01:07]} 33. Kb2 {[%clk 0:00:01]}  Rg4 {[%clk 0:01:03]} 34. Re2 {[%clk 0:00:01]}  Rxh4 {[%clk 0:01:03]} 35. c4 {[%clk 0:00:02]}  dxc4 {[%clk 0:00:59]} 36. bxc4 {[%clk 0:00:02]}  Rh1 {[%clk 0:00:59]} 37. Kc3 {[%clk 0:00:03]}  h4 {[%clk 0:00:59]} 38. Nb3 {[%clk 0:00:01]}  h3 {[%clk 0:00:58]} 39. Nc5 {[%clk 0:00:01]}  Bf3 {[%clk 0:00:57]} 40. Rf2 {[%clk 0:00:02]}  h2 {[%clk 0:00:55]} 0-1


[Site "https://www.chess.com"]

[Event "Titled Tuesday Blitz August 17 2021"]
[White "Shimelkov, Vasiliy"]
[Black "Milosevic, Milos"]
[WhiteFideId "13701630"]
[BlackFideId "964875"]
[WhiteElo "2073"]
[BlackElo "2244"]
[Result "1-0"]
[Round "02"]
[TimeControl "180+1"]
[Date "2021.08.17"]
[WhiteClock "0:00:18"]
[BlackClock "0:00:01"]

1. d4 {[%clk 0:03:00]}  Nf6 {[%clk 0:02:59]} 2. c4 {[%clk 0:03:00]}  g6 {[%clk 0:02:59]} 3. Nf3 {[%clk 0:02:59]}  Bg7 {[%clk 0:02:59]} 4. Nc3 {[%clk 0:02:58]}  d5 {[%clk 0:02:59]} 5. e3 {[%clk 0:02:58]}  O-O {[%clk 0:02:57]} 6. cxd5 {[%clk 0:02:58]}  Nxd5 {[%clk 0:02:57]} 7. Bc4 {[%clk 0:02:58]}  Nxc3 {[%clk 0:02:56]} 8. bxc3 {[%clk 0:02:58]}  c5 {[%clk 0:02:56]} 9. O-O {[%clk 0:02:57]}  b6 {[%clk 0:02:56]} 10. a4 {[%clk 0:02:56]}  Bb7 {[%clk 0:02:53]} 11. Ba3 {[%clk 0:02:49]}  Nc6 {[%clk 0:02:49]} 12. h3 {[%clk 0:02:38]}  Na5 {[%clk 0:02:45]} 13. Ba2 {[%clk 0:02:37]}  c4 {[%clk 0:02:28]} 14. Qe2 {[%clk 0:02:34]}  Rc8 {[%clk 0:02:26]} 15. Nd2 {[%clk 0:02:30]}  Re8 {[%clk 0:01:54]} 16. Bb4 {[%clk 0:02:29]}  Nb3 {[%clk 0:01:51]} 17. Nxb3 {[%clk 0:02:26]}  cxb3 {[%clk 0:01:50]} 18. Bxb3 {[%clk 0:02:26]}  a5 {[%clk 0:01:51]} 19. Ba3 {[%clk 0:02:24]}  Rxc3 {[%clk 0:01:51]} 20. Qa2 {[%clk 0:02:11]}  e6 {[%clk 0:01:37]} 21. Rac1 {[%clk 0:02:07]}  Rxc1 {[%clk 0:01:32]} 22. Rxc1 {[%clk 0:02:06]}  Qd7 {[%clk 0:01:33]} 23. Bd1 {[%clk 0:01:52]}  b5 {[%clk 0:01:24]} 24. axb5 {[%clk 0:01:49]}  Qxb5 {[%clk 0:01:25]} 25. Bc5 {[%clk 0:01:46]}  Bd5 {[%clk 0:01:18]} 26. Qa3 {[%clk 0:01:34]}  Qb7 {[%clk 0:01:10]} 27. f3 {[%clk 0:01:30]}  Bh6 {[%clk 0:00:52]} 28. Ra1 {[%clk 0:01:25]}  f5 {[%clk 0:00:50]} 29. Qc3 {[%clk 0:01:10]}  Ra8 {[%clk 0:00:30]} 30. Kf2 {[%clk 0:00:38]}  Qc7 {[%clk 0:00:29]} 31. Bc2 {[%clk 0:00:34]}  Bg5 {[%clk 0:00:21]} 32. Bb3 {[%clk 0:00:33]}  Bh4+ {[%clk 0:00:20]} 33. Kg1 {[%clk 0:00:33]}  Rb8 {[%clk 0:00:09]} 34. Bxd5 {[%clk 0:00:33]}  exd5 {[%clk 0:00:10]} 35. Qd2 {[%clk 0:00:27]}  a4 {[%clk 0:00:08]} 36. Qa2 {[%clk 0:00:24]}  Rb3 {[%clk 0:00:02]} 37. Qxa4 {[%clk 0:00:23]}  Rxe3 {[%clk 0:00:02]} 38. Qa8+ {[%clk 0:00:23]}  Kg7 {[%clk 0:00:02]} 39. Qxd5 {[%clk 0:00:23]}  Qf7 {[%clk 0:00:01]} 40. Ra7 {[%clk 0:00:18]} 1-0


[Site "https://www.chess.com"]

[Event "Titled Tuesday Blitz August 17 2021"]
[White "Shkapenko, Pavel"]
[Black "Torkkola, Henri"]
[WhiteFideId "4151933"]
[BlackFideId "507660"]
[WhiteElo "2386"]
[BlackElo "2137"]
[Result "1-0"]
[Round "02"]
[TimeControl "180+1"]
[Date "2021.08.17"]
[WhiteClock "0:01:03"]
[BlackClock "0:00:15"]

1. e4 {[%clk 0:03:00]}  e5 {[%clk 0:02:59]} 2. Nf3 {[%clk 0:03:00]}  Nc6 {[%clk 0:02:59]} 3. g3 {[%clk 0:02:56]}  Nf6 {[%clk 0:02:59]} 4. d3 {[%clk 0:02:55]}  g6 {[%clk 0:02:51]} 5. Bg2 {[%clk 0:02:53]}  Bg7 {[%clk 0:02:51]} 6. O-O {[%clk 0:02:54]}  O-O {[%clk 0:02:51]} 7. d4 {[%clk 0:02:43]}  Nxe4 {[%clk 0:02:46]} 8. Nxe5 {[%clk 0:02:34]}  Nxe5 {[%clk 0:02:45]} 9. dxe5 {[%clk 0:02:34]}  d5 {[%clk 0:02:41]} 10. exd6 {[%clk 0:02:31]}  Nxd6 {[%clk 0:02:41]} 11. Nc3 {[%clk 0:02:31]}  Re8 {[%clk 0:02:29]} 12. Bf4 {[%clk 0:02:30]}  Bf5 {[%clk 0:02:22]} 13. Re1 {[%clk 0:02:10]}  Rxe1+ {[%clk 0:02:19]} 14. Qxe1 {[%clk 0:02:10]}  Bxc2 {[%clk 0:02:18]} 15. Qd2 {[%clk 0:02:07]}  Bf5 {[%clk 0:02:14]} 16. Rd1 {[%clk 0:02:08]}  Rb8 {[%clk 0:01:58]} 17. Nd5 {[%clk 0:02:02]}  Ne4 {[%clk 0:01:16]} 18. Qb4 {[%clk 0:01:48]}  c5 {[%clk 0:00:56]} 19. Qe1 {[%clk 0:01:44]}  Nxf2 {[%clk 0:00:27]} 20. Qxf2 {[%clk 0:01:33]}  Bd4 {[%clk 0:00:27]} 21. Rxd4 {[%clk 0:01:33]}  cxd4 {[%clk 0:00:27]} 22. Bxb8 {[%clk 0:01:33]}  Qxb8 {[%clk 0:00:26]} 23. Ne7+ {[%clk 0:01:33]}  Kg7 {[%clk 0:00:25]} 24. Nxf5+ {[%clk 0:01:33]}  gxf5 {[%clk 0:00:25]} 25. Qxd4+ {[%clk 0:01:34]}  Kg6 {[%clk 0:00:23]} 26. Qc5 {[%clk 0:01:19]}  b6 {[%clk 0:00:21]} 27. Qc6+ {[%clk 0:01:19]}  Kg7 {[%clk 0:00:21]} 28. Qc3+ {[%clk 0:01:12]}  Kg6 {[%clk 0:00:20]} 29. h4 {[%clk 0:01:11]}  h5 {[%clk 0:00:19]} 30. Qe3 {[%clk 0:01:10]}  Qd6 {[%clk 0:00:15]} 31. Qg5+ {[%clk 0:01:07]}  Kh7 {[%clk 0:00:16]} 32. Qxh5+ {[%clk 0:01:07]}  Kg7 {[%clk 0:00:16]} 33. Qg5+ {[%clk 0:01:07]}  Kh8 {[%clk 0:00:15]} 34. Kh2 {[%clk 0:01:03]} 1-0


[Site "https://www.chess.com"]